[Event "Sheffield Masters 2024"]
[White "Dunnington,Angus J"]
[Black "Chow,Samuel"]
[Site "Sheffield"]
[Round "6.3"]
[Annotator "TA"]
[Result "0-1"]
[Date "2024.04.13"]
[WhiteElo "2317"]
[BlackElo "2350"]
[PlyCount "80"]
[TimeControl "5400+30"]

{[%evp 14,80,23,0,0,0,0,0,0,-26,-31,-22,-26,-23,-30,-26,-33,-42,-31,-29,-33,-35,-32,-33,-32,-35,-33,-64,-56,-65,-64,-78,-20,-80,-87,-106,-82,-98,-102,-135,-114,-174,-59,-70,-54,-66,-43,-77,-82,-81,-81,-92,-95,-97,-89,-83,-84,-85,-92,-101,-53,-79,-42,-61,-60,-87,-79,-120,-68]} 1. Nf3 Nf6 2. g3 c5 3. Bg2 Nc6 4. c4 d5 5. cxd5 Nxd5 6. O-O e5 7. Nc3 Nc7 8. a3 {[%cal Yb2b4]} Rb8 9. d3 Be7 10. Be3 O-O {The position is equal.} 11. Qc1 f6 12. Nd2 Nd4 13. Bxd4 exd4 14. Nb5 Nxb5 15. Qc4+ Kh8 16. Qxb5 a6 $36 {[%mdl 2048] Black has good play.} 17. Qc4 b5 18. Qd5 Qb6 19. Qe4 Be6 20. Rfc1 Rfc8 21. Rc2 f5 22. Qf4 Qd8 (22... c4 $17 {Hoping for ...c3.} 23. dxc4 bxc4 )23. a4 (23. e4 $11 {keeps the balance.} )Bd6 $17 24. Qf3 c4 25. axb5 axb5 26. dxc4 bxc4 27. Ra4 (27. Ra6 $17 {keeps fighting.} )Qd7 (27... Bb4 $19 {aiming for ...c3.} 28. Nf1 Qd6 )28. Raxc4 $15 Bxc4 29. Nxc4 Be7 30. Qd3 Bf6 {Dodges Ne5} 31. e4 Qa4 32. e5 {[#]} Bxe5 33. Qxf5 {[%cal Yg2e4] [#] Threatening mate with Be4!} Rf8 $1 (33... Rxc4 $2 {loses.} 34. Be4 Kg8 (34... Qa1+ $2 35. Kg2 $18 )35. Qxe5 Rxc2 36. Qxb8+ Kf7 37. Qf4+ (37. Bxc2 Qxc2 38. Qa7+ Kf8 $18 )Ke6 38. Qf5+ (38. Bxc2 Qxc2 39. Qxd4 Qc1+ 40. Kg2 Qc6+ 41. Kf1 Qa6+ 42. Kg1 Qa1+ 43. Kg2 Qa8+ 44. Kh3 Qb7 $18 )(38. Bxh7 Rxb2 39. Bf5+ Ke7 $16 )Kd6 39. Bxc2 $18 )34. Qe4 Bf6 {[%cal Yd4d3]} (34... d3 {seems wilder.} 35. Rd2 Rfc8 36. Bf1 Qxc4 37. Qxe5 Rb3 )35. Bf1 Rbe8 36. Qd3 Qb4 {Repels Nb6} ({Better is} 36... Re1 $17 37. h4 Be7 )37. Nd2 g6 38. h4 Qe7 {Black is more active.} 39. Rc1 Bg7 {Threatens to win with ...Qf7.} 40. Ra1 Qf6 {Weighted Error Value: White=0.13 (very precise) /Black=0.11 (very precise) .  Mistake:       	White=2     	Black=4      Inaccurate:     	White=6     	Black=1      OK:         	White=12    	Black=17     Best:        	White=2     	Black=2      Strong:       	---       	Black=1} (40... Qf7 $17 41. Ne4 Qb7 (41... Rxe4 42. Qxe4 Qxf2+ 43. Kh1 $15 ))0-1

[Event "Sheffield Masters 2024"]
[White "Kanyamarala,Trisha"]
[Black "O'gorman,Tom"]
[Site "Sheffield"]
[Round "6.4"]
[Annotator "RC"]
[Result "1-0"]
[Date "2024.04.13"]
[WhiteElo "2285"]
[BlackElo "2321"]
[PlyCount "131"]
[TimeControl "5400+30"]

1. d4 d5 2. c4 e6 3. Nf3 Nf6 4. Nc3 Be7 5. Bf4 O-O 6. e3 b6 7. cxd5 Nxd5 8. Nxd5 Qxd5 9. a3 c5 10. Be2 Bb7 11. O-O Nd7 12. Ne1 Qf5 13. Bg4 Qg6 14. Bh5 Qf6 15. Qa4 cxd4 16. Qxd7 Ba6 17. Qxd4 Rfd8 18. Qxf6 Bxf6 19. Rb1 Rac8 20. e4 g6 21. Bf3 g5 22. Be3 Bc4 23. g3 Kg7 24. Ng2 Bxf1 25. Kxf1 Rc2 26. b3 Rb2 27. Rxb2 Bxb2 28. a4 Rd3 29. b4 Rb3 30. b5 Rb4 31. Bd1 Bf6 32. e5 Bxe5 33. Bxg5 Rb1 34. Ke2 Rb2+ 35. Kf3 Rb1 36. Bc2 Rb2 37. Bd1 Rb1 38. Ke2 Rb2+ 39. Kf1 Rb1 40. Ke1 Bd4 41. Be3 Bc3+ 42. Ke2 Ra1 43. Nf4 Kf8 44. Bc2 Ke7 45. Kd3 Bg7 46. Ne2 Ra3+ 47. Kd2 e5 48. Nc3 h6 49. Nd5+ Kd6 50. Nb4 e4 51. Nc6 Bc3+ 52. Kc1 Ra1+ 53. Bb1 Rxa4 54. Kc2 Ra1 55. Kxc3 Rxb1 56. Nxa7 Kc7 57. Kc4 h5 58. Nc6 Rb2 59. Nb4 f5 60. h4 Kb7 61. Nd5 Rb1 62. Ne7 f4 63. Bxf4 Rb2 64. Be3 Rc2+ 65. Kb3 Rc7 66. Nd5 1-0

[Event "Sheffield Masters 2024"]
[White "Wall,Tim P"]
[Black "Pein,Jonathan"]
[Site "Sheffield"]
[Round "6.5"]
[Annotator "TA"]
[Result "1/2-1/2"]
[Date "2024.04.13"]
[WhiteElo "2197"]
[BlackElo "2247"]
[PlyCount "23"]
[TimeControl "5400+30"]

{[%evp 9,23,52,30,38,83,21,43,50,40,47,64,0,31,0,42,0]} 1. e4 d5 2. exd5 Qxd5 3. h3 e5 4. Nc3 {[%cal Yb1c3,Yc3e4,Ye4c5][%mdl 32]} Qd6 5. Nf3 Nc6 6. Bc4 Bf5 7. d3 ({White should try} 7. O-O $16 )Nge7 8. Ne4 Qd7 9. Nc5 Qd6 10. Ne4 {White is more active.} (10. b4 $5 )Qd7 11. Nc5 {[%csl Yb7,Yd7]} Qd6 12. Ne4 {Weighted Error Value: White=0.32/Black=0.11 (very precise) .  Mistake:       	White=1     	---        Inaccurate:     	White=2     	Black=1      OK:         	---       	Black=2} 1/2-1/2

[Event "Sheffield Masters 2024"]
[White "Pein,Jonathan"]
[Black "Nagy,Gabor"]
[Site "Sheffield"]
[Round "7.1"]
[Annotator "TA"]
[Result "0-1"]
[Date "2024.04.13"]
[WhiteElo "2247"]
[BlackElo "2436"]
[PlyCount "90"]
[TimeControl "5400+30"]

{[%evp 11,90,-24,4,4,8,0,0,-15,-26,-14,-18,-44,-30,-70,-71,-73,-85,-79,-77,-85,-85,-93,-78,-89,-81,-96,-66,-73,-39,-95,-62,-123,-125,-130,-125,-117,-95,-100,-99,-108,-99,-149,-139,-367,-352,-467,-101,-101,-101,-115,-145,-142,-36,-43,-24,-821,-563,-29973,-29974,-29974,-29975,-29975,-29976,-29976,-29976,-29976,-29977,-29977,-29977,-29979,-12782,-11234,-11234,-5762,-6205,-29983,-29978,-29973,-29974,-29988,-29989]} 1. e4 c5 2. Nf3 d6 3. d4 cxd4 4. Nxd4 Nf6 5. Nc3 a6 6. Rg1 g6 7. g4 Bg7 8. Be3 h5 $1 9. h3 {The position is equal.} hxg4 10. hxg4 Nc6 11. Be2 {[#]} (11. Nxc6 {is interesting.} bxc6 12. e5 Nd5 13. Nxd5 cxd5 14. Qxd5 Be6 15. Qc6+ )Bxg4 $1 12. Nxc6 (12. Bxg4 Nxg4 )Bxe2 13. Nxd8 Bxd1 {This pair of bishops is nice.} 14. Nxf7 Kxf7 15. Rxd1 Rac8 16. Bd4 b5 17. a3 Rh4 18. e5 dxe5 19. Bxe5 a5 20. Kd2 (20. Rd4 $15 Rxd4 21. Bxd4 )Rhc4 21. Bxf6 ({White should play} 21. f4 $15 )Bxf6 $17 22. Rc1 Bxc3+ 23. bxc3 Rxc3 {[%mdl 4096] Endgame. KRR-KRR} 24. Rg5 R8c5 25. Rxc5 Rxc5 {KR-KR} 26. Kd3 (26. c3 $142 )Kf6 {Black is more active.} 27. c4 $2 (27. Rh1 $17 )e5 $19 28. a4 bxa4 (28... Rxc4 $19 {is more deadly.} 29. Rb1 e4+ (29... Rxa4 $2 30. Rxb5 Ra2 31. Ke4 $19 )30. Kd2 b4 (30... Rxa4 $2 31. Rxb5 Ra3 32. Ke2 $17 ))29. Ra1 $17 Kf5 30. Rxa4 Kf4 {...Kf3 would now be deadly.} 31. Ra2 {[#]} Kf3 ({Better is} 31... g5 $1 $17 {Threatens to win with ...Kf3.} 32. Rb2 e4+ 33. Kd4 Rc8 )32. Rb2 $1 $15 a4 {aiming for ...g5.} 33. Rb5 $2 {[%mdl 8192] [#]} (33. Rc2 $11 )e4+ $1 $19 34. Kd4 Rxb5 35. cxb5 {K3P-KPP} a3 $1 (35... Kxf2 36. Kxe4 a3 37. b6 $17 )36. Kc3 Kxf2 {KP-KP} 37. b6 e3 38. b7 e2 (38... a2 39. Kb2 e2 40. b8=Q $17 )39. b8=Q e1=Q+ {KQ-KQ} (39... e1=B+ 40. Kb3 $18 )40. Kd4 Qe3+ (40... Kg1 $142 41. Qg8 Qf2+ 42. Ke4 a2 43. Qg7 Qe2+ 44. Kf4 g5+ 45. Qxg5+ Qg2 46. Qa5 Qf1+ 47. Kg3 Qf2+ (47... a1=B 48. Qc5+ )48. Kh3 Qf3+ 49. Kh4 Qf6+ 50. Kh3 Qh8+ (50... a1=B 51. Qe1+ Qf1+ 52. Qxf1+ Kxf1 $11 )(50... a1=Q {is a self mate.} 51. Qg5+ Kf1 52. Qg2+ Ke1 53. Qe4+ Kd2 54. Qg2+ Ke3 55. Qg1+ Ke2 56. Qg2+ Qf2 57. Qe4+ Qe3+ 58. Qxe3+ Kxe3 59. Kg4 Qf6 60. Kh5 Qg7 61. Kh4 Kf4 62. Kh5 Qh7# )51. Kg4 a1=Q (51... a1=B 52. Qe1+ Kg2 53. Qe2+ Kg1 54. Qe1+ Kg2 55. Qe2+ Kg1 56. Qe1+ $11 )52. Qxa1+ Qxa1 53. Kf5 Qe1 54. Kg6 Qe7 55. Kf5 Kg2 56. Kg6 Kf3 57. Kf5 Qd6 58. Kg5 Qe6 59. Kh5 Kf4 60. Kh4 Qh6# )41. Kd5 Kg2 {( -> ...a2)} 42. Qb1 Qf3+ 43. Kd4 g5 {Black mates.} 44. Ke5 Qe2+ 45. Kf5 a2 {Weighted Error Value: White=0.66/Black=0.40.  Loses game:     	White=2     	---        Missed win:     	---       	Black=1      Mistake:       	White=3     	Black=1      Inaccurate:     	White=4     	Black=3      OK:         	White=5     	Black=10     Best:        	White=7     	Black=2      Strong:       	White=1     	Black=2} 0-1

[Event "Sheffield Masters 2024"]
[White "O'gorman,Tom"]
[Black "Wall,Tim P"]
[Site "Sheffield"]
[Round "7.2"]
[Annotator "TA"]
[Result "1-0"]
[Date "2024.04.13"]
[WhiteElo "2321"]
[BlackElo "2197"]
[PlyCount "51"]
[TimeControl "5400+30"]

{[%evp 10,51,43,26,36,44,42,54,97,-270,93,94,105,97,86,69,62,70,63,61,53,61,52,70,61,-18,-10,0,62,59,48,46,42,48,62,28,29,0,0,0,0,0,235,206]} 1. e4 c5 2. Nf3 Nf6 3. Nc3 d5 4. exd5 Nxd5 5. Bb5+ Bd7 6. Ne5 Bxb5 7. Qf3 {[%csl Ge5][%cal Rf3f7]} ({Much worse is} 7. Nxb5 e6 $11 )f6 {Threatens to win with ...Nxc3.} 8. Nxb5 Na6 {White is slightly better.} 9. Qh5+ g6 10. Nxg6 {White is more active.} hxg6 11. Qxh8 {Qh7 would now be deadly.} Qd7 {[#]} 12. Qh4 {Prevents Nab4} Qxb5 13. c4 $1 Qb4 14. a3 Qa4 {[#]} 15. b3 $1 Qxb3 16. cxd5 Qxd5 17. Qa4+ (17. O-O $14 )Kf7 $11 {[%mdl 1024] White must now prevent ...Qe5+. Black has compensation.} 18. O-O e5 {[#]} (18... c4 $11 )19. d3 $1 Nc7 {[%cal Yb7b5]} 20. Rb1 b5 21. Qh4 Bg7 {[%cal Ya7a6]} 22. Be3 {[%cal Yc1e3,Ye3f4,Yf4e5][%mdl 32] aiming for Rfc1.} a6 {[%cal Yc7e6]} 23. f4 exf4 24. Bxf4 Ne6 25. Rbe1 {Wards off f5. And now Be5 would win.} Rd8 $2 (25... f5 $11 {and Black stays safe.} )26. Be5 {Weighted Error Value: White=0.10 (very precise) /Black=0.28 (precise) .  Loses game:     	---       	Black=1      Missed win:     	---       	Black=1      Mistake:       	White=1     	Black=1      Inaccurate:     	White=2     	Black=1      OK:         	White=12    	Black=9      Best:        	White=2     	Black=2      Strong:       	White=1     	---} 1-0

[Event "Sheffield Masters 2024"]
[White "Chow,Samuel"]
[Black "Kanyamarala,Trisha"]
[Site "Sheffield"]
[Round "7.3"]
[Annotator "TA"]
[Result "1-0"]
[Date "2024.04.13"]
[WhiteElo "2350"]
[BlackElo "2285"]
[PlyCount "89"]
[TimeControl "5400+30"]

{[%evp 12,89,18,19,16,18,12,14,65,56,82,72,66,72,114,136,125,133,104,118,119,103,110,81,187,184,234,241,234,237,228,227,301,302,272,300,306,291,298,247,245,243,247,244,725,735,623,317,326,309,306,306,625,605,611,611,610,610,610,610,553,593,859,859,859,818,845,822,6020,5633,29975,29976,29977,29978,29979,29980,29980,29981,29980,29982]} 1. d4 Nf6 2. c4 e6 3. Nf3 d5 4. Nc3 Bb4 5. cxd5 exd5 6. Bg5 {[%cal Yc1g5,Yg5h4,Yh4g3][%mdl 32]} h6 7. Bh4 O-O 8. e3 Bf5 9. Be2 c5 (9... g5 $11 10. Bg3 Ne4 )10. dxc5 $14 g5 11. Bg3 {Black must now prevent h4.} Ne4 12. O-O Nxc3 13. bxc3 Bxc3 14. Rc1 Bb2 {[#]} 15. Qb3 $1 $36 {[%mdl 2048] White is in control.} Bxc1 16. Qxb7 {White is much more active. The black rooks are passive.} Qd7 17. Qxd7 (17. Qxa8 Nc6 $17 )Nxd7 (17... Bxd7 $16 18. Rxc1 Nc6 )18. Rxc1 $18 Rfc8 {Black is weak on the dark squares} (18... Nxc5 {was called for.} 19. Rxc5 Rfc8 )19. Nd4 {[%mdl 1024] White has strong compensation.} Be6 20. c6 a6 21. c7 {Hoping for Rc6.} Nf6 22. Rc6 {[%csl Ya6,Ye6]} Ne8 23. Nxe6 (23. Rxa6 Nxc7 24. Rb6 Rxa2 $11 )(23. Bxa6 Rxa6 24. Rxa6 Nxc7 25. Bxc7 Rxc7 $18 )fxe6 24. Bg4 ({Inferior is} 24. Rxa6 Nxc7 25. Rb6 (25. Rxa8 $2 Nxa8 26. h4 Nb6 $19 )Rxa2 $17 )({Don't do} 24. Bxa6 Rxc7 25. Bxc7 Nxc7 $18 )Ng7 25. Bxe6+ Nxe6 26. Rxe6 {[%mdl 4096] Endgame. KRR-KRB} Kh7 27. h3 Ra7 $2 (27... h5 28. Rc6 Kg7 29. Be5+ Kf7 30. Rf6+ Ke7 )28. Re7+ Kg6 29. Rd7 h5 {[%cal Yh6h5,Yh5h4][%mdl 32]} 30. Rxd5 h4 31. Be5 Rb7 $2 (31... Kf7 32. g4 Ke6 )32. Rd8 Rbxc7 33. Bxc7 Rxc7 {KR-KR} 34. Rd6+ Kf5 35. Rxa6 Rc1+ 36. Kh2 Rc2 37. f3 Re2 38. Ra5+ Kg6 39. e4 Kh6 40. a4 {[%cal Ya2a4,Ya4a5,Ya5a6,Ya6a7][%mdl 32] [#] Ra8 would kill now.} Kh5 41. Ra8 {White mates.} Kg6 42. a5 Kf6 43. a6 Ra2 44. a7 Kg7 45. e5 {Black got outplayed after the opening.   Weighted Error Value: White=0.20 (precise) /Black=0.36.  Mistake:       	---       	Black=5      Inaccurate:     	---       	Black=3      OK:         	White=14    	Black=10     Best:        	White=4     	Black=1} 1-0

[Event "Sheffield Masters 2024"]
[White "Gourlay,Iain"]
[Black "Dunnington,Angus J"]
[Site "Sheffield"]
[Round "7.4"]
[Annotator "RC"]
[Result "1-0"]
[Date "2024.04.13"]
[WhiteElo "2307"]
[BlackElo "2317"]
[PlyCount "97"]
[TimeControl "5400+30"]

1. Nf3 d6 2. d4 g6 3. e4 Bg7 4. c3 Nf6 5. Bd3 O-O 6. O-O Nc6 7. Re1 e5 8. h3 h6 9. Bf1 Nh5 10. Be3 Nf4 11. Kh2 g5 12. g3 Nxh3 13. d5 Ne7 14. Bxh3 Bxh3 15. Kxh3 g4+ 16. Kg2 gxf3+ 17. Qxf3 f5 18. exf5 Rxf5 19. Qe4 Qd7 20. Nd2 c6 21. c4 Raf8 22. Rad1 Qe8 23. Qd3 Qg6 24. Ne4 cxd5 25. cxd5 Rf3 26. Nc5 dxc5 27. Qxg6 Nxg6 28. Bxc5 R3f7 29. Bxf8 Kxf8 30. Re4 Rd7 31. d6 Kf7 32. Rc4 Bf8 33. f4 exf4 34. gxf4 Nh4+ 35. Kh3 Nf5 36. Rc7 Ke6 37. Re1+ Kxd6 38. Rc8 Bg7 39. Kg4 Nd4 40. Kh5 Re7 41. Rxe7 Kxe7 42. Rc7+ Kf6 43. Rxb7 Ne6 44. Kg4 h5+ 45. Kxh5 Nxf4+ 46. Kg4 Nd3 47. b3 a5 48. Ra7 Ne5+ 49. Kf4 1-0

[Event "Sheffield Masters 2024"]
[White "Ledger,Andrew J"]
[Black "Pal,Rohan"]
[Site "Sheffield"]
[Round "7.5"]
[Annotator "TA"]
[Result "1-0"]
[Date "2024.04.13"]
[WhiteElo "2336"]
[BlackElo "2142"]
[PlyCount "95"]
[TimeControl "5400+30"]

{[%evp 24,95,19,23,40,27,21,24,108,22,32,26,28,31,39,41,38,35,114,109,101,108,105,111,207,212,196,34,48,54,74,56,54,54,75,39,47,8,8,8,8,8,82,78,75,62,130,123,263,176,476,475,693,716,1913,1754,1864,23,69,77,29968,29970,29971,29971,29973,29971,29971,29976,29985,29986,29988,29989,29989,29990]} 1. d4 Nf6 2. c4 e6 3. Nf3 d5 4. g3 Be7 5. Bg2 O-O 6. O-O c6 7. b3 b6 8. Bb2 Bb7 9. Nc3 Nbd7 10. Qc2 Rc8 11. e4 dxe4 12. Nxe4 Nxe4 13. Qxe4 Nf6 14. Qe2 c5 15. Rad1 Qc7 (15... cxd4 $11 {keeps the balance.} 16. Rxd4 (16. Nxd4 Bxg2 17. Kxg2 Qc7 $11 )(16. Bxd4 Qc7 $11 )Qc7 )16. dxc5 (16. d5 $1 $16 {[%cal Rd5e6]} exd5 17. Rfe1 )Qxc5 (16... Bxc5 {feels hotter.} 17. Ng5 Bxg2 18. Kxg2 Be7 )17. Ne5 Bxg2 18. Kxg2 Rfd8 19. Rxd8+ Rxd8 20. Rd1 Qc7 (20... Rd6 $14 )21. Rxd8+ $16 Qxd8 22. Qf3 {Qb7 would now be deadly.} Bd6 23. Qb7 $1 {[%csl Ya7,Yf7] White is more active.} Bxe5 (23... Qc7 $16 24. Qa8+ Qb8 25. Qxb8+ Bxb8 )24. Bxe5 $18 Qd7 25. Qxd7 (25. Qa8+ $18 Ne8 26. Bb8 )Nxd7 {[%mdl 4096] Endgame. KB-KN} 26. Bd6 f6 27. f4 Kf7 28. b4 g6 29. g4 f5 30. gxf5 exf5 31. b5 Ke6 32. Bb4 Nf6 {[#]} (32... h6 $11 {remains equal.} )33. Kf3 $1 $16 Ne4 34. Ke3 Kf6 {[#]} (34... Kd7 $1 $14 )35. a4 $1 {[%cal Ya2a4,Ya4a5][%mdl 32]} Ke6 (35... g5 $16 {keeps fighting.} )36. a5 $18 g5 $2 (36... bxa5 37. Bxa5 Kd7 )37. fxg5 Nxg5 (37... bxa5 $142 38. Bxa5 Nd6 )38. a6 Nf7 39. c5 {Hoping for cxb6.} Ne5 40. c6 $2 (40. Kd4 $18 {And now cxb6 would win.} Nd7 41. cxb6 Nxb6 42. Bc5 )Ng4+ (40... f4+ $1 $11 41. Ke4 (41. Kxf4 $2 {is the wrong capture.} Nd3+ 42. Kg5 Nxb4 $19 )f3 )41. Kf4 $14 {Bc3 is the strong threat.} Nxh2 $2 {[%mdl 8192] [#]} (41... Nf6 $16 42. Kg5 Nd5 )42. Bc5 $1 {[%mdl 512] White mates.} Ng4 {[#]} (42... bxc5 43. b6 )43. Bxb6 $1 {[%mdl 512]} Nf6 (43... Ne5 44. c7 )44. Bxa7 Nd5+ 45. Kg5 f4 {[%cal Yf5f4,Yf4f3][%mdl 32]} 46. Bc5 f3 47. a7 Nc7 48. b6 {Weighted Error Value: White=0.29 (precise) /Black=0.59.  Loses game:     	---       	Black=1      Missed win:     	White=1     	---        Mistake:       	White=1     	Black=8      Inaccurate:     	White=2     	Black=1      OK:         	White=7     	Black=3      Best:        	White=6     	Black=2      Strong:       	White=3     	---        Brilliant:      	White=1     	---} 1-0

[Event "Sheffield Masters 2024"]
[White "Nagy,Gabor"]
[Black "Pal,Rohan"]
[Site "Sheffield"]
[Round "8.1"]
[Annotator "TA"]
[Result "1-0"]
[Date "2024.04.14"]
[WhiteElo "2436"]
[BlackElo "2142"]
[PlyCount "81"]
[TimeControl "5400+30"]

{[%evp 21,81,62,52,44,56,36,44,36,61,64,65,65,64,80,79,87,142,147,164,171,253,124,129,120,136,128,146,150,155,159,200,164,200,209,414,410,400,417,404,386,490,494,522,518,516,515,634,631,754,749,722,710,793,798,819,819,789,798,29941,6235,5314,5289]} 1. c4 {[%emt 0:1:3]} e6 {[%emt 0:0:16]} 2. Nc3 {[%emt 0:0:55]} d5 {[%emt 0:0:10]} 3. e3 {[%emt 0:0:21]} Nf6 {[%emt 0:0:39]} 4. Nf3 {[%emt 0:0:22]} Be7 {[%emt 0:0:19]} 5. b3 {[%emt 0:0:37]} O-O {[%emt 0:0:39]} 6. Bb2 {[%emt 0:0:8]} b6 {[%emt 0:2:6]} 7. cxd5 {[%emt 0:0:56]} exd5 {[%emt 0:1:10]} 8. d4 {[%emt 0:0:19]} Bb7 {[%emt 0:4:11]} 9. Bd3 {[%emt 0:1:1]} c5 {[%emt 0:5:33]} 10. O-O {[%emt 0:2:48]} Nc6 {[%emt 0:2:32]} 11. dxc5 {[%emt 0:4:40]} Bxc5 {[%emt 0:6:32]} 12. Ne2 {[%emt 0:0:29]} Qe7 {[%emt 0:3:8]} 13. Ned4 {[%emt 0:3:29]} Nxd4 {[%emt 0:9:39]} 14. Nxd4 {[%emt 0:0:16] White is slightly better.} Bc8 {[%emt 0:6:53]} 15. Qf3 {[%emt 0:9:7]} Qe5 {[%emt 0:6:17]} 16. Rac1 {[%emt 0:4:59]} Bd6 {[%emt 0:8:10]} 17. Qg3 {[%emt 0:0:54] Active counter play!} Qxg3 {[%emt 0:2:30]} 18. hxg3 {[%emt 0:1:58]} Be5 {[%emt 0:4:17]} (18... Bc5 $142 )19. Ba3 $16 {[%emt 0:0:41]} Re8 {[%emt 0:2:20]} 20. Nc6 {[%emt 0:1:19] And now f4 would win.} Bd7 {[%emt 0:4:42] [#]} (20... Kh8 {was called for.} 21. Nxe5 Rxe5 )21. Nxe5 {[%emt 0:0:32]} (21. f4 $1 $18 {is the precise move to win.} Ba1 22. Ne7+ Rxe7 23. Bxe7 )Rxe5 {[%emt 0:0:5]} 22. Rc7 {[%emt 0:0:30]} Ree8 {[%emt 0:1:42]} 23. Rfc1 {[%emt 0:1:59][%cal Yf1c1,Yc1c6,Yc6e6][%mdl 32]} a6 {[%emt 0:2:7]} 24. Bb2 {[%emt 0:2:39] Bxf6 would now be deadly. Black is weak on the dark squares} Be6 {[%emt 0:2:9]} 25. f3 {[%emt 0:1:27]} Nd7 {[%emt 0:0:33]} 26. Bd4 {[%emt 0:0:26] Prevents Nc5. A strong pair of Bishops.} h6 {[%emt 0:1:32]} 27. R1c6 {[%emt 0:2:4][%cal Yc6e6] aiming for Rxe6!} b5 $2 {[%emt 0:1:59] [#]} (27... Red8 28. g4 (28. Bxb6 Nxb6 29. Rxb6 a5 $16 )b5 )28. Rxe6 $1 $18 {[%emt 0:0:23][%mdl 512]} fxe6 {[%emt 0:0:25]} 29. Rxd7 {[%emt 0:0:7]} e5 {[%emt 0:0:14]} 30. Bb2 {[%emt 0:0:24]} Rad8 {[%emt 0:0:53]} 31. Rxd8 {[%emt 0:0:26]} Rxd8 {[%emt 0:0:3]} 32. Bxe5 {[%emt 0:0:8]} Kf7 {[%emt 0:0:5]} 33. Kf2 {[%emt 0:0:25]} g5 {[%emt 0:0:7]} 34. g4 {[%emt 0:0:11]} Rd7 {[%emt 0:0:10]} 35. Ke2 {[%emt 0:0:28]} Rd8 {[%emt 0:0:6]} 36. Kd2 {[%emt 0:0:45]} Rc8 {[%emt 0:0:13]} 37. f4 {[%emt 0:1:26]} gxf4 {[%emt 0:0:8]} 38. exf4 {[%emt 0:0:7]} Rg8 {[%emt 0:0:20]} 39. Bf5 {[%emt 0:0:7]} h5 {[%emt 0:0:12]} 40. g5 {[%emt 0:0:9] Bh7 would kill now.} Ke7 {[%emt 0:0:6]} 41. Bh7 {[%emt 0:0:23] Weighted Error Value: White=0.10 (very precise) /Black=0.38.  Mistake:       	White=1     	Black=3      OK:         	White=13    	Black=5      Best:        	---       	Black=1      Brilliant:      	White=1     	---} 1-0

[Event "Sheffield Masters 2024"]
[White "Kanyamarala,Trisha"]
[Black "Gourlay,Iain"]
[Site "Sheffield"]
[Round "8.3"]
[Annotator "TA"]
[Result "1/2-1/2"]
[Date "2024.04.14"]
[WhiteElo "2285"]
[BlackElo "2307"]
[PlyCount "42"]
[TimeControl "5400+30"]

{[%evp 9,42,22,34,26,27,25,23,25,20,10,18,0,0,11,20,0,0,0,0,0,0,0,0,0,0,-7,6,8,6,-4,3,0,14,0,3]} 1. d4 {[%emt 0:0:3]} d5 {[%emt 0:1:12]} 2. c4 {[%emt 0:0:10]} e6 {[%emt 0:0:5]} 3. Nf3 {[%emt 0:0:12]} Nf6 {[%emt 0:0:15]} 4. Nc3 {[%emt 0:0:12]} a6 {[%emt 0:0:24]} 5. cxd5 {[%emt 0:0:20]} exd5 {[%emt 0:0:9]} 6. Bg5 {[%emt 0:0:9]} Be6 {[%emt 0:0:13]} 7. Bxf6 {[%emt 0:0:23]} Qxf6 {[%emt 0:0:11]} 8. Qb3 {[%emt 0:0:8] White has an edge.} Ra7 {[%emt 0:0:17]} 9. a3 {[%emt 0:0:11] The position is equal.} Qd8 {[%emt 0:0:21]} 10. h4 {[%emt 0:0:25]} c6 {[%emt 0:3:38]} 11. Qc2 {[%emt 0:0:20]} h6 {[%emt 0:8:28]} 12. g3 {[%emt 0:7:49]} Nd7 {[%emt 0:2:56]} 13. Bh3 {[%emt 0:2:15]} Bxh3 {[%emt 0:5:0]} 14. Rxh3 {[%emt 0:0:5]} Nf6 {[%emt 0:1:14]} 15. Kf1 {[%emt 0:1:40]} Bd6 {[%emt 0:7:37]} 16. e4 {[%emt 0:7:25]} dxe4 {[%emt 0:4:37]} 17. Nxe4 {[%emt 0:0:16]} Nxe4 {[%emt 0:1:21]} 18. Qxe4+ {[%emt 0:0:7]} Qe7 {[%emt 0:1:1]} 19. Qf5 {[%emt 0:2:12] [#] Black must now prevent Re1.} Qd7 {[%emt 0:1:0]} 20. Qe4+ {[%emt 0:3:25]} Qe7 {[%emt 0:3:54]} 21. Qf5 {[%emt 0:2:42] Hoping for Re1.} Qd7 {[%emt 0:1:41] Not much happened in this game.   Weighted Error Value: White=0.05 (flawless) /Black=0.02 (flawless) .  OK:         	White=5     	Black=6      Best:        	---       	Black=1} 1/2-1/2